bitfinex-derivatives/quotes_ETHF0:USTF0_20250224
["timestamp","ask_amount","ask_price","bid_price","bid_amount"]
[1740415351142,0.00562345,2670.3,2670.2,0.74906]
[1740415351341,0.00562345,2670.3,2670.0,0.56281618]
[1740415351342,0.74906,2670.2,2670.1,0.589]
[1740415351546,0.74909,2670.2,2670.1,0.74907]
[1740415351737,0.00562345,2670.3,2670.2,0.74906]
[1740415352050,0.75465345,2670.3,2670.2,0.74906]
[1740415352251,0.00562345,2670.3,2670.2,0.56359829]
[1740415352446,0.00562345,2670.3,2670.2,3.77139829]
[1740415353550,0.00562345,2670.3,2670.2,8.47596095]
[1740415353847,0.00562345,2670.3,2670.2,7.57401397]
[1740415354440,0.00562345,2670.3,2670.2,8.47570153]
[1740415354649,3.7735,2671.0,2670.2,9.04288399]
[1740415354847,3.7735,2671.0,2670.3,0.56352627]
[1740415355155,1.31455,2671.0,2670.7,3.2078]
[1740415355340,1.32747,2671.3,2671.2,0.74878]
[1740415355539,3.2078,2671.4,2671.0,3.2078]
[1740415355744,0.57132345,2671.5,2671.3,0.74875]
[1740415355945,0.57132345,2671.5,2671.4,0.74873]
[1740415356456,1.32002345,2671.5,2671.4,0.74873]
[1740415356750,0.57132345,2671.5,2671.4,0.74873]
[1740415357142,0.00562345,2671.5,2671.4,0.74873]
[1740415357942,3.2078,2672.4,2671.4,0.74873]
[1740415357943,3.2078,2672.4,2671.4,11.20448324]
[1740415358142,3.2078,2672.4,2672.3,0.74847]
[1740415358543,0.5593,2672.7,2672.3,0.74847]
[1740415358750,0.74846,2672.4,2672.0,3.333]
[1740415358949,0.74843,2672.5,2672.3,0.74847]
[1740415359147,0.00367053,2672.5,2671.9,3.7419]
[1740415359339,0.00367053,2672.5,2672.4,0.74845]
[1740415359538,0.00367053,2672.5,2672.4,4.08045]
[1740415362749,0.75209053,2672.5,2672.3,0.74846]
[1740415362958,0.75209053,2672.5,2671.9,3.7419]
[1740415362959,0.00367053,2672.5,2671.9,3.7419]
[1740415363147,0.00367053,2672.5,2672.0,3.33]
[1740415363548,0.74853,2672.1,2672.0,3.33]
[1740415363759,0.74856,2672.0,2671.9,3.2078]
[1740415363952,0.5624,2672.4,2671.9,3.2078]
[1740415364447,1.87119,2672.3,2671.7,3.33]
[1740415364652,0.7486,2671.9,2671.7,4.07862]
[1740415364859,3.2078,2672.2,2671.7,3.33]
[1740415365152,1.87143,2672.0,2671.4,9.5198]
[1740415365354,5.07907,2672.2,2671.7,0.74863]
[1740415365355,0.74861,2671.9,2671.7,0.74863]
[1740415365559,0.74861,2671.8,2671.7,0.74863]
[1740415365752,0.7487,2671.5,2671.4,9.5198]
[1740415365949,0.5722,2672.1,2671.4,6.5378]
[1740415366153,0.74867,2671.7,2671.5,0.74869]
[1740415366355,1.8714,2672.0,2671.4,6.5378]
[1740415366547,0.7487,2671.5,2671.4,7.28653]
[1740415366756,0.7487,2671.5,2671.4,6.5378]
[1740415366956,3.2078,2671.9,2671.3,3.33]
[1740415367161,0.74871,2671.5,2671.3,3.33]
[1740415367656,0.74873,2671.4,2671.3,3.33]
[1740415367854,0.74878,2671.2,2671.1,20.762]
[1740415368058,0.5766,2671.6,2671.1,20.762]
[1740415368252,0.5766,2671.6,2671.1,21.51079]
[1740415368559,0.5766,2671.6,2671.1,20.762]
[1740415368754,0.74871,2671.5,2671.4,0.74871]
[1740415369052,0.74871,2671.5,2671.3,0.74874]
[1740415369252,0.5766,2671.6,2671.1,20.762]
[1740415369453,0.74877,2671.3,2671.1,21.51078]
[1740415369650,0.74871,2671.5,2671.4,0.74873]
[1740415369850,0.5766,2671.6,2671.1,20.762]
[1740415370050,3.2078,2671.9,2671.1,20.762]
[1740415370261,0.74866,2671.7,2671.6,0.74866]
[1740415370456,0.74867,2671.6,2671.5,4.07769]
[1740415370655,0.74867,2671.6,2671.5,44.87769]
[1740415370866,0.74867,2671.6,2671.5,44.129]
[1740415371064,0.74867,2671.6,2671.5,3.329]
[1740415371561,0.74878,2671.2,2671.1,20.762]
[1740415371763,0.74878,2671.2,2671.1,24.091]
[1740415371963,3.2078,2671.6,2671.1,24.091]
[1740415372261,0.74874,2671.4,2671.3,0.74873]
[1740415372462,3.2078,2671.6,2671.2,40.8]
[1740415372654,0.74872,2671.5,2671.4,0.74871]
[1740415373051,2.44343,2672.3,2671.5,1.87175]
[1740415373251,0.5722,2672.3,2671.6,3.329]
[1740415373562,0.74861,2671.9,2671.8,0.7486]
[1740415373959,0.74861,2671.8,2671.7,41.54863]
[1740415374161,0.74861,2671.9,2671.8,0.7486]
[1740415374665,0.74861,2671.8,2671.7,41.54863]
[1740415374862,0.5896,2672.2,2671.7,40.8]
[1740415375061,0.74857,2672.0,2671.9,0.74856]
[1740415375366,0.74857,2672.0,2671.7,44.0078]
[1740415375367,0.7486,2671.9,2671.8,0.74859]
[1740415375566,0.74861,2671.8,2671.7,44.75642]
[1740415375871,0.74861,2671.9,2671.8,0.7486]
[1740415376360,2.46089,2672.2,2671.6,3.329]
[1740415376361,1.87133,2672.1,2671.6,3.329]
[1740415376561,1.87133,2672.1,2671.4,3.2078]
[1740415376562,0.7487,2671.5,2671.4,6.93851]
[1740415376766,0.7487,2671.5,2671.4,7.28451]
[1740415376968,1.87146,2672.0,2671.4,6.5358]
[1740415377168,0.74868,2671.6,2671.5,0.74867]
[1740415377560,1.87147,2671.9,2671.4,6.5358]
[1740415377762,5.61536,2672.1,2671.4,6.5358]
[1740415377965,0.74866,2671.7,2671.6,0.74865]
[1740415378565,0.5362,2672.1,2671.4,6.5358]
[1740415378768,0.5362,2672.1,2671.5,1.87175]
[1740415378966,0.74864,2671.8,2671.7,3.2078]
[1740415379167,0.5362,2672.1,2671.7,3.2078]
[1740415379578,0.5362,2672.1,2671.6,0.5352]
[1740415379870,3.744,2672.1,2671.6,3.328]
[1740415380277,0.3754,2672.0,2671.3,2.982]
[1740415380468,3.2078,2671.8,2671.4,3.328]
[1740415380972,0.3754,2672.0,2671.4,3.328]
[1740415381163,0.00399817,2671.6,2671.4,3.328]
[1740415384769,0.00399817,2671.6,2671.5,3.2078]
[1740415384968,0.00399817,2671.6,2671.5,3.7942]
[1740415385170,0.00399817,2671.6,2671.5,4.3560985]
[1740415385565,0.00399817,2671.6,2671.5,4.82433095]
[1740415385975,0.00399817,2671.6,2671.5,4.82463001]
[1740415386179,0.00399817,2671.6,2671.5,3.67603245]
[1740415386574,0.00399817,2671.6,2671.3,40.8]
[1740415386869,0.00399817,2671.6,2671.4,3.88929521]
[1740415387072,0.00399817,2671.6,2671.5,3.2078]
[1740415389778,0.00399817,2671.6,2671.5,3.77003451]
[1740415390274,0.5896,2672.2,2671.5,5.13818423]
[1740415390474,3.2078,2672.4,2671.8,3.2078]
[1740415390782,0.5773,2672.3,2671.9,3.326]
[1740415390981,0.5773,2672.3,2671.5,0.5813]
[1740415391276,0.5773,2672.3,2671.6,6.5338]
[1740415391277,3.2078,2672.1,2671.6,6.5338]
[1740415391480,3.2078,2672.1,2671.6,3.326]
[1740415391681,3.2078,2672.1,2671.4,2.982]
[1740415391881,3.2078,2672.1,2671.5,3.88906073]
[1740415392081,3.2078,2672.1,2671.6,3.2078]
[1740415392476,3.2078,2672.1,2671.5,3.326]
[1740415392678,3.2078,2672.1,2671.4,2.982]
[1740415392872,3.2078,2672.1,2671.5,3.88959429]
[1740415393085,3.2078,2672.1,2671.5,3.326]
[1740415393279,5.66446,2672.1,2671.5,4.07468]
[1740415393478,1.8715,2671.9,2671.6,3.326]
[1740415393679,0.74856,2672.0,2671.6,4.07467]
[1740415393680,0.74864,2671.7,2671.6,4.07467]
[1740415393873,0.74863,2671.9,2671.8,0.7486]
[1740415394075,0.74863,2671.9,2671.6,1.0328955]
[1740415394076,0.74857,2672.0,2671.9,0.74856]
[1740415394277,0.74849,2672.3,2672.2,0.74847]
[1740415394575,3.95626,2672.4,2672.3,0.74847]
[1740415395077,0.7485,2672.3,2672.2,0.74849]
[1740415395276,3.2078,2672.4,2672.1,3.326]
[1740415395585,0.7485,2672.2,2672.1,4.07451]
[1740415396085,3.2078,2672.4,2672.1,3.326]
[1740415396281,0.7485,2672.2,2672.1,3.326]
[1740415396483,0.74859,2671.9,2671.8,1.1398]
[1740415396683,0.74859,2671.9,2671.8,5.02839797]
[1740415396881,0.74859,2671.9,2671.8,4.90923143]
[1740415397082,0.74859,2671.9,2671.8,3.8762]
[1740415397483,0.5726,2672.3,2671.8,4.43978314]
[1740415397780,4.3391,2672.4,2671.8,4.43978314]
[1740415397781,0.74855,2672.1,2672.0,0.74854]
[1740415397993,0.74853,2672.2,2672.1,0.74851]
[1740415398283,0.74853,2672.2,2672.1,4.07351]
[1740415398474,0.74853,2672.2,2672.1,3.325]
[1740415398677,0.74853,2672.2,2672.1,4.07353]
[1740415399178,3.2078,2672.4,2672.1,3.325]
[1740415401186,0.74847,2672.3,2672.2,0.7485]
[1740415401987,0.00367053,2672.5,2672.4,0.74845]
[1740415402287,0.00367053,2672.5,2672.1,3.325]
[1740415402483,0.7485,2672.3,2672.2,1.31210411]
[1740415402789,0.74846,2672.4,2672.3,0.74845]
[1740415402988,0.00367053,2672.5,2672.1,3.325]
[1740415403188,0.75212053,2672.5,2672.4,0.74845]
[1740415403390,0.74849,2672.3,2672.2,0.74848]
[1740415403581,0.74849,2672.3,2672.2,42.11201885]
[1740415403783,0.74847,2672.4,2672.3,0.74846]
[1740415404588,0.74847,2672.3,2672.2,40.8]
[1740415404787,0.7485,2672.2,2672.1,3.325]
[1740415404990,0.7485,2672.2,2672.1,4.63712867]
[1740415405490,0.7485,2672.2,2672.1,3.88859867]
[1740415405893,0.7485,2672.2,2672.1,3.325]
[1740415406389,0.7485,2672.2,2672.1,4.07353]
[1740415406983,0.7485,2672.2,2672.1,3.325]
[1740415407188,0.74853,2672.1,2672.0,44.0078]
[1740415407384,0.74852,2672.2,2672.1,0.74851]
[1740415408094,0.5816,2672.4,2672.0,47.3308]
[1740415408285,0.74853,2672.1,2672.0,48.07934]
[1740415408990,0.74853,2672.2,2672.1,0.74852]
[1740415409193,0.74853,2672.1,2672.0,47.3308]
[1740415409390,0.74853,2672.1,2672.0,48.07936]
[1740415410291,0.5816,2672.4,2672.0,47.3308]
[1740415411187,0.5816,2672.4,2672.1,0.74853]
[1740415411383,0.7485,2672.2,2672.1,0.74853]
[1740415412288,0.5816,2672.4,2672.0,47.3308]
[1740415412487,0.00367053,2672.5,2672.0,49.20219]
[1740415412688,0.74852,2672.2,2672.0,47.3308]
[1740415412898,0.00367053,2672.5,2672.0,47.3308]
[1740415413092,0.7485,2672.3,2672.2,0.74849]
[1740415413390,0.74852,2672.2,2672.1,0.74852]
[1740415413585,0.00367053,2672.5,2672.4,0.74845]
[1740415413795,0.00367053,2672.5,2672.4,4.07045]
[1740415414093,0.00367053,2672.5,2672.4,3.322]
[1740415414094,0.75209053,2672.5,2672.4,3.322]
[1740415414283,0.00367053,2672.5,2672.0,47.3298]
[1740415414488,0.74848,2672.3,2672.2,0.74848]
[1740415414892,0.74848,2672.3,2671.8,0.5512]
[1740415414893,1.87119,2672.3,2671.8,0.5512]
[1740415415091,0.74861,2671.8,2671.7,4.07063]
[1740415415292,1.1037,2672.2,2671.7,3.88548222]
[1740415415496,0.74861,2671.8,2671.7,4.07062]
[1740415415682,1.1037,2672.2,2672.1,0.74853]
[1740415415890,0.74858,2672.0,2671.9,0.74857]
[1740415416087,1.1037,2672.2,2671.7,3.322]
[1740415416499,0.74856,2672.1,2672.0,0.74854]
[1740415416798,0.74864,2671.8,2671.7,0.7486]
[1740415416992,0.74857,2672.0,2671.6,3.2078]
[1740415417195,0.7486,2671.9,2671.8,0.74858]
[1740415417595,1.1037,2672.2,2671.6,3.2078]
[1740415417790,1.1037,2672.2,2671.6,5.07946]
[1740415418099,0.74855,2672.1,2672.0,0.74853]
[1740415418396,0.74859,2672.0,2671.9,0.74857]
[1740415418789,0.74855,2672.1,2672.0,0.74853]
[1740415419191,0.74858,2672.0,2671.9,0.74857]
[1740415419397,1.1037,2672.2,2671.6,3.2078]
[1740415419596,0.74858,2672.0,2671.9,0.74857]
[1740415419892,1.1037,2672.2,2671.6,5.07946]
[1740415420193,1.1037,2672.2,2671.7,0.5633189]
[1740415420402,1.1037,2672.2,2671.5,44.122]
[1740415420403,0.5696,2672.2,2672.1,0.74853]
[1740415420695,0.5696,2672.2,2671.9,3.2078]
[1740415420696,0.5696,2672.2,2672.0,0.74854]
[1740415420895,0.74855,2672.1,2672.0,0.74854]
[1740415421294,0.74856,2672.0,2671.9,6.5288]
[1740415422101,0.74856,2672.0,2671.9,3.2078]
[1740415422599,3.2078,2672.0,2671.5,40.8]
[1740415422802,0.74865,2671.8,2671.7,0.74862]
[1740415423495,0.74865,2671.8,2671.5,47.3288]
[1740415423689,0.74867,2671.7,2671.6,0.74865]
[1740415424094,3.2078,2672.0,2671.5,47.3288]
[1740415424694,0.5696,2672.2,2671.5,47.3288]
[1740415426901,0.5696,2672.2,2671.5,44.0078]
[1740415427203,0.5696,2672.2,2671.5,47.3288]
[1740415429305,3.2078,2671.8,2671.5,44.121]
[1740415429502,0.5432,2671.7,2671.5,44.121]
[1740415429705,3.2078,2672.1,2671.5,47.3288]
[1740415429913,0.5432,2672.3,2671.6,1.10351712]
[1740415430205,0.5432,2672.3,2671.6,0.5398]
[1740415432005,0.5432,2672.3,2671.8,3.2078]
[1740415432310,0.5432,2672.3,2671.9,3.8794]
[1740415433410,3.2078,2672.4,2671.9,3.8794]
[1740415434514,3.2078,2672.4,2671.9,0.5594]
[1740415435416,3.2078,2672.1,2671.9,0.5594]
[1740415435601,3.2078,2672.1,2671.6,4.0728]
[1740415435805,3.2078,2672.1,2671.6,3.533]
[1740415435806,0.5554,2672.0,2671.6,3.533]
[1740415436005,1.6599,2672.0,2671.6,3.533]
[1740415437415,1.0922,2672.0,2671.6,3.533]
[1740415438012,0.5554,2672.0,2671.6,4.1165]
[1740415438816,0.5554,2672.0,2671.6,1.1345]
[1740415440111,0.5554,2672.0,2671.7,0.56426505]
[1740415440311,0.5554,2672.0,2671.6,1.1345]
[1740415440512,0.5554,2672.0,2671.7,0.56428716]
[1740415440712,0.5554,2672.0,2671.6,1.1345]
[1740415441215,0.5554,2672.0,2671.7,0.56432124]
[1740415441415,0.5554,2672.0,2671.6,1.1345]
[1740415441614,0.5554,2672.0,2671.7,0.5644447]
[1740415441810,0.5554,2672.0,2671.6,1.1345]
[1740415442012,0.5554,2672.0,2671.7,0.56456539]
[1740415442317,0.5554,2672.0,2671.7,0.47024308]
[1740415442918,0.5554,2672.0,2671.6,1.1345]
[1740415443117,0.5554,2672.0,2671.7,0.5645585]
[1740415443320,0.5554,2672.0,2671.6,1.1345]
[1740415443525,0.5554,2672.0,2671.7,0.56470296]
[1740415443716,0.5554,2672.0,2671.6,1.1345]
[1740415444018,0.5554,2672.0,2671.7,0.56461592]
[1740415444218,0.5554,2672.0,2671.8,0.5647303]
[1740415444418,0.5554,2672.0,2671.6,1.1345]
[1740415444612,0.5554,2672.0,2671.7,0.56477734]
[1740415444815,3.5832,2671.8,2670.9,6.1898]
[1740415445014,1.4948,2671.7,2671.1,21.3491]
[1740415445212,1.4948,2671.7,2671.1,0.5871]
[1740415445419,1.4948,2671.7,2671.2,3.7728969]
[1740415445420,0.5502,2671.7,2671.2,3.7728969]
[1740415445626,0.5502,2671.7,2671.2,3.2078]
[1740415446119,3.2078,2671.5,2671.1,0.5871]
[1740415446622,0.5751,2671.4,2671.0,0.00562345]
[1740415447615,3.2078,2671.8,2671.0,3.32362345]
[1740415447817,3.2078,2671.8,2671.1,1.66406387]
[1740415448013,0.581,2671.7,2671.2,40.8]
[1740415448415,0.581,2671.7,2671.3,0.5357]
[1740415448817,0.5773,2671.6,2671.3,0.5357]
[1740415449217,0.9527,2671.6,2671.0,44.01342345]
[1740415451721,3.5832,2671.5,2671.0,40.80562345]
[1740415451922,3.2078,2671.2,2671.0,0.00562345]
[1740415452119,1.86831,2671.1,2671.0,3.45e-06]
[1740415452717,1.30131,2671.1,2671.0,3.45e-06]
[1740415452919,0.5525,2671.1,2671.0,3.45e-06]
[1740415453225,0.74881,2671.1,2671.0,3.45e-06]
[1740415459328,10.06581,2671.1,2671.0,3.45e-06]
[1740415459725,6.74881,2671.1,2671.0,3.45e-06]
[1740415459928,4.06481,2671.1,2671.0,3.45e-06]
[1740415461630,0.74881,2671.1,2671.0,3.45e-06]
[1740415463328,0.74881,2671.1,2671.0,1.32104345]
[1740415463523,3.9566,2671.2,2671.1,0.74881]
[1740415463728,0.74875,2671.4,2671.3,0.74873]
[1740415463932,0.74877,2671.3,2671.2,0.74875]
[1740415464929,0.74874,2671.4,2671.3,0.74873]
[1740415465131,3.95652,2671.5,2671.4,0.74873]
[1740415465331,0.5436,2671.8,2671.2,1.87193]
[1740415465531,0.74867,2671.7,2671.6,0.74866]
[1740415465935,0.7487,2671.6,2671.5,0.74868]
[1740415466328,0.74873,2671.5,2671.4,0.74871]
[1740415466536,0.3754,2671.6,2671.0,3.45e-06]
[1740415466835,0.74881,2671.1,2671.0,3.45e-06]
[1740415468036,0.74881,2671.1,2671.0,0.74884345]
[1740415468740,0.74881,2671.1,2671.0,3.45e-06]
[1740415469244,0.74881,2671.1,2671.0,0.74884345]
[1740415469435,1.6842,2671.4,2671.0,3.45e-06]
[1740415469641,2.99754,2671.4,2671.0,0.57550345]
[1740415469839,0.74881,2671.1,2671.0,1.32434345]
[1740415470039,0.74879,2671.2,2671.1,0.74877]
[1740415470344,3.2078,2671.5,2671.0,0.57550345]
[1740415470538,0.74877,2671.3,2671.2,0.74875]
[1740415470737,3.2078,2671.5,2671.0,1.11500345]
[1740415471040,0.74881,2671.1,2671.0,1.86381345]
[1740415471239,3.2078,2671.5,2671.0,1.11500345]
[1740415471442,3.2078,2671.5,2671.0,0.57550345]
[1740415473044,0.5481,2671.7,2671.0,0.57550345]
[1740415473241,0.74866,2671.7,2671.6,0.74867]
[1740415473547,0.74865,2671.7,2671.6,0.74864]
[1740415474637,8.03619,2672.1,2671.5,1.87174]
[1740415474638,3.2078,2672.1,2671.5,1.87174]
[1740415474837,0.74854,2672.1,2672.0,0.74854]
[1740415475042,0.74855,2672.1,2672.0,0.74855]
[1740415475244,1.7081,2672.4,2671.7,3.314]
[1740415475449,0.74849,2672.3,2672.2,0.74849]
[1740415475639,0.74855,2672.1,2672.0,0.74855]
[1740415475941,1.7081,2672.4,2671.9,0.74856]
[1740415476141,0.74855,2672.1,2672.0,0.74856]
[1740415476344,0.7486,2671.9,2671.7,3.314]
[1740415476545,3.2078,2672.2,2671.7,3.314]
[1740415476852,0.74861,2671.8,2671.7,4.06263]
[1740415477145,0.74861,2671.8,2671.7,3.314]
[1740415477450,0.74861,2671.8,2671.7,4.06264]
[1740415477639,0.74861,2671.9,2671.8,0.7486]
[1740415478044,5.0791,2672.2,2671.7,3.314]
[1740415478045,0.74861,2671.8,2671.7,4.06263]
[1740415478750,3.2078,2672.2,2672.1,0.74853]
[1740415478953,3.2078,2672.2,2671.7,3.314]
[1740415479244,0.74861,2671.9,2671.8,0.7486]
[1740415479441,3.95631,2672.2,2671.7,3.313]
[1740415479646,3.2078,2672.2,2671.9,0.74857]
[1740415479847,0.74854,2672.1,2672.0,0.74855]
[1740415480250,0.74855,2672.1,2671.9,0.74856]
[1740415480647,3.95631,2672.2,2672.1,0.74853]
[1740415481049,3.2078,2672.2,2672.1,0.74853]
[1740415481250,3.21147053,2672.5,2671.9,0.5483]
[1740415481457,3.95991053,2672.5,2672.3,0.74847]
[1740415481657,3.21147053,2672.5,2672.3,0.74847]
[1740415481958,3.21147053,2672.5,2672.4,0.74845]
[1740415481959,3.95990053,2672.5,2672.4,0.74845]
[1740415482553,3.21147053,2672.5,2672.4,0.74845]
[1740415483148,0.00367053,2672.5,2672.4,0.74845]
[1740415483559,0.74845,2672.4,2672.3,0.59]
[1740415485558,0.00367053,2672.5,2672.4,0.74845]
[1740415485859,0.00367053,2672.5,2672.4,1.28485]
[1740415486055,0.75209053,2672.5,2672.4,1.28485]
[1740415486254,0.00367053,2672.5,2672.4,1.28485]
[1740415489860,0.00367053,2672.5,2672.4,4.59585]
[1740415490060,0.00367053,2672.5,2672.4,45.39585]
[1740415490256,0.00367053,2672.5,2672.4,42.08485]
[1740415490456,0.74859,2671.9,2671.8,3.2078]
[1740415490656,0.7486,2671.9,2671.8,0.74859]
[1740415490960,0.74863,2671.8,2671.7,0.74862]
[1740415491861,0.74862,2671.8,2671.7,0.74861]
[1740415492065,0.5855,2672.3,2671.6,3.31]
[1740415492366,0.7486,2671.9,2671.6,3.31]
[1740415492560,0.7486,2671.9,2671.8,0.74861]
[1740415493552,0.74859,2671.9,2671.8,0.74861]
[1740415494153,0.9609,2672.3,2671.6,3.31]
[1740415494466,0.7486,2671.9,2671.8,0.74859]
[1740415494853,0.7486,2671.9,2671.6,3.31]
[1740415494854,0.74864,2671.8,2671.7,0.74861]
[1740415495557,3.2078,2672.1,2671.4,4.3446]
[1740415495763,0.7487,2671.5,2671.4,5.09332]
[1740415495962,0.7487,2671.5,2671.4,3.7594]
[1740415496163,3.2078,2671.8,2671.4,3.7594]
[1740415496360,0.5719,2671.7,2671.4,3.7594]
[1740415497070,0.5649,2671.9,2671.4,3.7594]
[1740415497462,3.2078,2672.1,2671.7,3.2078]
[1740415497767,3.7759,2672.4,2671.8,40.8]
[1740415497967,4.3478,2672.4,2671.8,40.8]
[1740415499467,4.3478,2672.4,2671.7,3.309]
[1740415499468,4.3478,2672.4,2671.7,6.5168]
[1740415499861,4.3478,2672.4,2671.7,47.3168]
[1740415500368,4.3478,2672.4,2671.7,40.8]
[1740415500567,3.2078,2672.1,2671.4,0.5516]
[1740415501169,3.2078,2672.1,2671.4,41.3516]
[1740415501363,3.2078,2672.1,2671.5,0.5847]
[1740415501567,4.3478,2672.4,2671.6,3.2078]
[1740415501764,4.3478,2672.4,2671.7,3.309]
[1740415501960,4.3478,2672.4,2671.7,3.8855]
[1740415502665,4.3478,2672.4,2671.7,3.309]
[1740415502865,3.2078,2672.1,2671.4,41.3516]
[1740415503065,0.5498,2672.0,2671.4,0.5516]
[1740415503673,0.5498,2672.0,2671.5,40.8]
[1740415504374,0.5769,2671.9,2671.5,40.8]
[1740415504967,0.5769,2671.9,2671.4,0.5516]
[1740415505263,3.2078,2671.8,2671.4,0.5516]
[1740415505470,3.7613,2671.8,2671.4,0.5516]
[1740415507268,3.2078,2671.8,2671.4,0.5516]
[1740415507470,3.2078,2672.1,2671.5,0.5343]
[1740415507873,3.2078,2672.1,2671.6,3.8483]
[1740415508468,3.2078,2672.1,2671.4,0.5516]
[1740415508669,3.2078,2672.1,2671.5,3.308]
[1740415509282,3.2078,2671.8,2671.4,3.8596]
[1740415509578,0.5735,2671.7,2671.4,3.8596]
[1740415510472,3.2078,2671.8,2671.4,3.8596]
[1740415511567,3.2078,2671.5,2671.0,3.45e-06]
[1740415511773,1.0871,2671.4,2671.0,0.53700345]
[1740415511971,3.2078,2671.2,2671.0,0.53700345]
[1740415512276,3.2078,2671.2,2671.0,3.45e-06]
[1740415514576,3.2078,2671.8,2671.1,3.307]
[1740415514768,3.2078,2671.8,2671.3,3.2078]
[1740415515382,3.2078,2671.8,2671.2,0.5604]
[1740415515580,3.2078,2672.1,2671.2,0.5604]
[1740415516073,3.2078,2672.1,2671.6,3.2078]
[1740415516375,1.1479,2672.4,2671.8,1.87154]
[1740415516574,1.1479,2672.4,2671.8,3.2078]
[1740415516777,0.74861,2671.8,2671.7,1.112]
[1740415516976,0.74861,2671.8,2671.7,3.8586]
[1740415517181,3.2078,2672.2,2671.7,3.8586]
[1740415517480,0.74858,2672.0,2671.9,0.74856]
[1740415517778,3.2078,2672.2,2671.7,3.8586]
[1740415517978,0.74861,2671.8,2671.7,4.60721]
[1740415518180,0.7486,2671.9,2671.8,0.74859]
[1740415519076,0.7486,2671.9,2671.7,3.8586]
[1740415519273,0.7486,2671.9,2671.8,0.74859]
[1740415519475,0.74861,2671.8,2671.7,3.8586]
[1740415519674,0.7486,2671.9,2671.8,0.7486]
[1740415519875,0.74861,2671.8,2671.7,3.8586]
[1740415520082,3.2078,2672.2,2671.7,3.8586]
[1740415520278,0.7486,2671.9,2671.8,0.74859]
[1740415520483,0.74855,2672.1,2672.0,0.74854]
[1740415520780,0.74858,2672.0,2671.9,0.74856]
[1740415521879,3.95632,2672.2,2672.1,0.74853]
[1740415522880,0.74852,2672.2,2672.1,0.74853]
[1740415523980,0.74856,2672.1,2672.0,0.74854]
[1740415524178,1.1479,2672.4,2671.8,0.5688]
[1740415524780,1.1479,2672.4,2671.9,40.8]
[1740415525279,1.1479,2672.4,2671.8,3.305]
[1740415527586,0.5663,2672.4,2671.8,3.305]
[1740415527981,0.5663,2672.4,2671.8,6.287]
[1740415528386,0.9417,2672.4,2671.8,6.287]
[1740415528585,0.5764,2672.3,2671.8,6.287]
[1740415529278,0.5663,2672.4,2671.8,6.287]
[1740415531286,0.00367053,2672.5,2672.3,3.2078]
[1740415531488,0.00367053,2672.5,2672.4,48.9552]
[1740415531690,3.2078,2673.1,2672.4,49.51291275]
[1740415531893,3.2078,2673.1,2672.4,48.9552]
[1740415532279,0.5864,2673.2,2672.4,51.12208113]
[1740415532481,1.33464,2673.2,2673.1,0.74825]
[1740415532786,0.75378272,2673.4,2673.3,0.74819]
[1740415533296,0.00561272,2673.4,2673.3,4.05219]
[1740415533481,0.00561272,2673.4,2673.3,7.25999]
[1740415533996,0.74807,2673.8,2673.7,0.74806]
[1740415534189,0.74807,2673.8,2673.7,4.05106]
[1740415534491,0.5734,2674.1,2673.7,3.303]
[1740415534683,3.2078,2674.2,2673.7,3.303]
[1740415534881,0.74799,2674.1,2673.9,0.74801]
[1740415535085,0.748,2674.0,2673.9,0.74803]
[1740415535290,0.74801,2674.0,2673.9,0.74802]
[1740415535994,0.74801,2674.0,2673.9,0.74801]
[1740415536194,1.86976,2674.4,2673.8,1.32643]
[1740415536392,1.86976,2674.4,2673.9,0.74802]
[1740415536592,0.748,2674.0,2673.9,0.748]
[1740415536792,0.748,2674.0,2673.8,1.32643]
[1740415537092,0.74803,2673.9,2673.8,1.32643]
[1740415537288,1.86977,2674.4,2673.8,0.5784]
[1740415537289,0.74801,2674.0,2673.8,0.5784]
[1740415537589,5.07748,2674.5,2673.8,0.5784]
[1740415537590,5.07747,2674.5,2674.0,0.74799]
[1740415537788,3.2078,2674.5,2673.8,0.5784]
[1740415537990,0.74805,2673.8,2673.7,3.60013009]
[1740415538191,0.74805,2673.8,2673.7,0.29813009]
[1740415538490,0.74825,2673.1,2673.0,3.302]
[1740415538694,0.74828,2673.0,2672.9,0.57621272]
[1740415538888,3.95608,2673.0,2672.9,0.00561272]
[1740415541494,7.25708,2673.0,2672.9,0.00561272]
[1740415541890,0.74847,2672.3,2672.2,3.2078]
[1740415542095,6.5088,2673.0,2672.2,3.2078]
[1740415542292,0.74839,2672.6,2672.5,0.7484]
[1740415542792,0.74838,2672.7,2672.6,0.74838]
[1740415542998,3.2078,2673.0,2672.2,5.07903]
[1740415543300,0.74835,2672.8,2672.4,0.00561272]
[1740415543601,0.74835,2672.8,2672.7,0.74836]
[1740415544101,0.00561272,2672.9,2672.8,0.74833]
[1740415545005,0.00561272,2672.9,2672.8,3.95613]
[1740415546096,0.00561272,2672.9,2672.8,44.75613]
[1740415546290,0.75392272,2672.9,2672.8,44.0078]
[1740415546495,0.00561272,2672.9,2672.8,44.75613]
[1740415549397,0.00561272,2672.9,2672.8,50.75613]
[1740415549594,0.74815,2673.5,2673.4,0.74813]
[1740415549808,0.5738,2673.7,2673.2,6.5078]
[1740415550005,0.74801,2674.0,2673.6,1.87028]
[1740415550295,5.07752,2674.5,2673.6,1.87028]
[1740415550296,1.86975,2674.4,2673.7,3.3]
[1740415550502,0.74804,2674.0,2673.9,0.748]
[1740415550703,0.74795,2674.3,2674.2,0.74792]